bitfinex-derivatives/quotes_ETHF0:USTF0_20230105
["timestamp","ask_amount","ask_price","bid_price","bid_amount"]
[1672912496721,3.58703857,1247.4,1247.3,1.20106234]
[1672912496930,6.79483857,1247.4,1247.3,1.20106234]
[1672912497560,3.58703857,1247.4,1247.3,1.20106234]
[1672912497771,6.79483857,1247.4,1247.3,1.20106234]
[1672912498927,3.58703857,1247.4,1247.3,1.20106234]
[1672912499140,6.79483857,1247.4,1247.3,1.20106234]
[1672912501235,3.58703857,1247.4,1247.3,1.20106234]
[1672912501449,6.79483857,1247.4,1247.3,1.20106234]
[1672912501663,3.2078,1247.4,1247.3,3.00460742]
[1672912503444,6.79483857,1247.4,1247.3,1.20106234]
[1672912504280,3.2078,1247.4,1247.3,3.00460742]
[1672912505544,3.2078,1247.4,1247.3,1.20106234]
[1672912505758,3.2078,1247.4,1247.3,3.00460742]
[1672912505964,3.2078,1247.4,1247.3,1.80354508]
[1672912506177,3.00026841,1247.4,1247.3,4.20881126]
[1672912507751,3.00034662,1247.4,1247.3,1.80354508]
[1672912508600,6.58703857,1247.5,1247.3,1.80354508]
[1672912508805,6.58703857,1247.5,1247.4,1.20213002]
[1672912509859,9.79483857,1247.5,1247.4,1.20213002]
[1672912510074,9.79483857,1247.5,1247.3,3.0056751]
[1672912510285,13.97608466,1247.5,1247.3,3.0056751]
[1672912510801,9.79483857,1247.5,1247.3,3.0056751]
[1672912513434,9.79483857,1247.5,1247.4,1.20213002]
[1672912515011,6.58703857,1247.5,1247.4,1.20213002]
[1672912515844,6.58703857,1247.5,1247.4,4.20213002]
[1672912515845,3.0,1247.5,1247.4,4.20213002]
[1672912516063,3.0,1247.5,1247.4,6.0056751]
[1672912517642,20.75283857,1247.6,1247.4,6.0056751]
[1672912517843,6.79483857,1247.6,1247.5,1.20213002]
[1672912518053,9.79483857,1247.6,1247.4,6.0056751]
[1672912518369,5.9986665,1247.5,1247.4,6.0056751]
[1672912522790,5.9986665,1247.5,1247.4,3.0056751]
[1672912523000,5.9986665,1247.5,1247.4,6.0056751]
[1672912523210,2.9986665,1247.5,1247.4,6.0056751]
[1672912523421,2.9986665,1247.5,1247.4,5.99900153]
[1672912523630,5.9986665,1247.5,1247.4,5.99900153]
[1672912526153,2.9986665,1247.5,1247.4,5.99900153]
[1672912526468,5.9986665,1247.5,1247.4,5.99900153]
[1672912526677,2.9986665,1247.5,1247.4,5.99900153]
[1672912532886,2.3979536,1247.5,1247.4,4.79687151]
[1672912533834,2.3979536,1247.5,1247.4,7.20213769]
[1672912534043,2.3979536,1247.5,1247.4,4.79687151]
[1672912537407,2.3979536,1247.5,1247.4,8.00467151]
[1672912539512,2.3979536,1247.5,1247.4,10.40993769]
[1672912539727,2.3979536,1247.5,1247.4,8.00467151]
[1672912541096,2.3979536,1247.5,1247.4,4.79687151]
[1672912544034,2.3979536,1247.5,1247.4,13.40626618]
[1672912544667,2.3979536,1247.5,1247.4,14.82701855]
[1672912544984,2.3979536,1247.5,1247.4,13.40626618]
[1672912545191,2.3979536,1247.5,1247.4,14.82702673]
[1672912545927,2.3979536,1247.5,1247.4,18.03482673]
[1672912546136,2.3979536,1247.5,1247.4,16.61406618]
[1672912546453,2.3979536,1247.5,1247.4,18.0348241]
[1672912546663,2.3979536,1247.5,1247.4,16.61406618]
[1672912547496,2.3979536,1247.5,1247.4,3.0]
[1672912547711,5.3966201,1247.5,1247.4,3.0]
[1672912547923,2.3979536,1247.5,1247.4,5.40526618]
[1672912548124,0.35139019,1247.6,1247.5,3.0]
[1672912548331,0.35139019,1247.6,1247.5,4.20078641]
[1672912552017,0.35139019,1247.6,1247.5,3.0]
[1672912553387,0.35139019,1247.6,1247.5,4.20104209]
[1672912553587,0.35139019,1247.6,1247.5,3.0]
[1672912554014,0.35139019,1247.6,1247.4,5.40526618]
[1672912554224,0.35139019,1247.6,1247.5,1.20128641]
[1672912555382,6.58703857,1247.7,1247.5,1.20128641]
[1672912556219,9.79483857,1247.7,1247.5,1.20128641]
[1672912562002,9.79483857,1247.7,1247.4,2.40526618]
[1672912562003,9.79483857,1247.7,1247.4,1.20128641]
[1672912562215,3.2078,1247.5,1247.4,1.20128641]
[1672912562531,5.7078,1247.5,1247.4,1.20128641]
[1672912566419,9.29483857,1247.5,1247.3,1.20128641]
[1672912566625,5.7078,1247.5,1247.3,4.20128641]
[1672912566945,5.7078,1247.5,1247.3,1.20128641]
[1672912568101,2.99696976,1247.4,1247.3,1.20128641]
[1672912568831,6.20476976,1247.4,1247.3,1.20128641]
[1672912570096,6.20476976,1247.4,1247.2,10.40526618]
[1672912570519,6.20476976,1247.4,1247.3,4.20088718]
[1672912570716,6.20476976,1247.4,1247.3,4.20088678]
[1672912570927,6.20476976,1247.4,1247.3,3.0]
[1672912571149,3.2078,1247.4,1247.3,3.0]
[1672912576416,3.2078,1247.4,1247.2,13.40652496]
[1672912576831,3.2078,1247.4,1247.3,3.0]
[1672912578088,5.60382748,1247.4,1247.3,3.0]
[1672912578825,2.39602748,1247.4,1247.3,5.40526618]
[1672912579143,2.39602748,1247.4,1247.3,6.82614649]
[1672912579458,2.39602748,1247.4,1247.3,5.40526618]
[1672912580201,7.89299724,1247.5,1247.3,5.40526618]
[1672912580609,5.49696976,1247.5,1247.4,1.20062877]
[1672912582927,2.39631169,1247.5,1247.3,5.40526618]
[1672912583124,2.39631169,1247.5,1247.3,8.40652496]
[1672912583340,2.39631169,1247.5,1247.4,2.40526618]
[1672912583549,2.39631169,1247.5,1247.4,4.20614471]
[1672912584601,2.39631169,1247.5,1247.4,1.80087853]
[1672912592706,2.39631169,1247.5,1247.4,4.20614471]
[1672912593124,2.39631169,1247.5,1247.4,2.40526618]
[1672912593965,2.39631169,1247.5,1247.4,4.20671067]
[1672912595439,2.39631169,1247.5,1247.4,2.40526618]
[1672912599852,2.39631169,1247.5,1247.4,1.80134779]
[1672912600484,5.39328145,1247.5,1247.4,1.80134779]
[1672912600695,2.39631169,1247.5,1247.4,1.80134779]
[1672912601113,5.39328145,1247.5,1247.4,1.80134779]
[1672912601634,2.39631169,1247.5,1247.4,1.80134779]
[1672912603640,2.39631169,1247.5,1247.4,4.20661397]
[1672912604574,2.39631169,1247.5,1247.4,1.80134779]
[1672912605313,5.39328145,1247.5,1247.4,1.80134779]
[1672912605740,2.99696976,1247.5,1247.4,1.80134779]
[1672912606153,2.99696976,1247.5,1247.4,3.00232381]
[1672912606366,5.39498685,1247.5,1247.4,1.80134779]
[1672912606584,2.99696976,1247.5,1247.4,1.80134779]
[1672912610468,2.99696976,1247.5,1247.4,4.20661397]
[1672912610779,2.99696976,1247.5,1247.4,1.80134779]
[1672912612036,2.99696976,1247.5,1247.4,4.20661397]
[1672912614454,2.99696976,1247.5,1247.4,3.82609186]
[1672912614869,2.99696976,1247.5,1247.4,2.40526618]
[1672912615300,2.99696976,1247.5,1247.4,4.20792076]
[1672912615611,2.99696976,1247.5,1247.4,1.80265458]
[1672912615829,5.49696976,1247.5,1247.4,1.80265458]
[1672912616666,2.5,1247.5,1247.4,1.80265458]
[1672912616879,5.49942823,1247.5,1247.4,1.80265458]
[1672912617194,2.5,1247.5,1247.4,1.80265458]
[1672912617818,5.49939508,1247.5,1247.4,1.80265458]
[1672912618452,2.5,1247.5,1247.4,1.80265458]
[1672912618663,5.49972287,1247.5,1247.4,1.7975254]
[1672912618873,2.5,1247.5,1247.4,1.7975254]
[1672912619823,5.7078,1247.5,1247.4,1.7975254]
[1672912620236,8.70752053,1247.5,1247.4,1.7975254]
[1672912620974,5.7078,1247.5,1247.4,1.7975254]
[1672912621397,8.70757458,1247.5,1247.4,1.7975254]
[1672912623289,5.7078,1247.5,1247.4,1.7975254]
[1672912624022,5.7078,1247.5,1247.4,1.2020893]
[1672912624444,5.7078,1247.5,1247.4,4.2020893]
[1672912624858,3.2078,1247.5,1247.4,4.2020893]
[1672912625068,5.7078,1247.5,1247.4,4.2020893]
[1672912626334,3.2078,1247.5,1247.4,4.2020893]
[1672912627174,6.20685184,1247.5,1247.4,3.0]
[1672912628225,6.20688169,1247.5,1247.4,3.0]
[1672912628442,6.20684097,1247.5,1247.4,3.0]
[1672912629494,6.20684097,1247.5,1247.3,5.40526618]
[1672912629804,2.39905459,1247.4,1247.3,5.40526618]
[1672912630020,5.49904097,1247.4,1247.3,5.40526618]
[1672912631274,2.99904097,1247.4,1247.3,5.40526618]
[1672912631806,5.39788561,1247.4,1247.3,5.40526618]
[1672912632754,5.39769408,1247.4,1247.3,5.40526618]
[1672912634330,2.99904097,1247.4,1247.3,5.40526618]
[1672912634534,5.39771809,1247.4,1247.3,5.40526618]
[1672912637906,5.39771809,1247.4,1247.3,6.82620059]
[1672912638116,5.39771809,1247.4,1247.3,5.40526618]
[1672912638322,5.39780316,1247.4,1247.3,5.40526618]
[1672912639164,5.39780316,1247.4,1247.3,14.82720348]
[1672912639373,2.39876219,1247.4,1247.3,14.82720348]
[1672912640842,2.39876219,1247.4,1247.3,15.42319608]
[1672912641996,5.39780316,1247.5,1247.3,15.42319608]
[1672912642212,5.39780316,1247.5,1247.4,6.82432376]
[1672912642531,5.39809576,1247.5,1247.4,6.82432376]
[1672912643785,2.39905479,1247.5,1247.4,6.82432376]
[1672912643997,5.39809576,1247.5,1247.4,6.82432376]
[1672912644522,2.39905479,1247.5,1247.4,6.82432376]
[1672912644942,2.39905479,1247.5,1247.4,14.82532376]
[1672912648727,5.39809576,1247.6,1247.4,15.42319608]
[1672912648938,2.39905479,1247.5,1247.4,14.00225878]
[1672912649251,5.39809576,1247.6,1247.5,11.001]
[1672912649461,2.99904097,1247.6,1247.5,13.40347551]
[1672912649990,2.99904097,1247.6,1247.5,11.001]
[1672912650624,5.39691489,1247.6,1247.5,11.001]
[1672912654090,2.39787392,1247.6,1247.5,11.001]
[1672912654308,2.39787392,1247.6,1247.5,13.40347551]
[1672912654619,2.39787392,1247.6,1247.5,11.001]
[1672912656401,2.39787392,1247.8,1247.5,25.78749368]
[1672912656717,2.39787392,1247.8,1247.7,13.001]
[1672912657455,5.39691489,1247.9,1247.7,13.001]
[1672912657665,5.39691489,1247.9,1247.8,4.19944382]
[1672912658076,5.3940331,1247.9,1247.8,4.19944382]
[1672912658400,5.39397893,1247.9,1247.8,4.19944382]
[1672912658614,2.39493796,1247.9,1247.8,3.0]
[1672912659767,2.39493796,1247.9,1247.8,12.20044382]
[1672912659982,5.39397893,1248.0,1247.8,15.40824382]
[1672912660509,2.39493796,1248.0,1247.8,15.40824382]
[1672912661549,8.39397893,1248.1,1247.8,15.40824382]
[1672912661764,2.39493796,1248.0,1247.8,15.40824382]
[1672912662084,3.0,1247.9,1247.8,15.40824382]
[1672912662609,5.7078,1248.0,1247.8,15.40824382]
[1672912662814,3.2078,1248.0,1247.8,15.40824382]
[1672912663234,2.39493796,1248.0,1247.8,12.20044382]
[1672912663446,3.0,1247.9,1247.8,12.20044382]
[1672912663867,4.89493796,1248.0,1247.8,12.20044382]
[1672912664392,2.39493796,1248.0,1247.8,12.20044382]
[1672912664603,11.60177893,1248.1,1247.8,12.20044382]
[1672912665127,3.0,1248.0,1247.8,12.20044382]
[1672912665755,8.60273796,1248.1,1247.8,12.20044382]
[1672912666075,3.0,1248.0,1247.8,12.20044382]
[1672912667342,8.60273796,1248.1,1247.8,12.20044382]
[1672912668702,8.60273796,1248.1,1247.8,11.001]
[1672912669113,8.60273796,1248.1,1247.8,12.20044382]
[1672912669643,8.60273796,1248.1,1247.8,11.001]
[1672912669852,3.0,1248.0,1247.8,11.001]
[1672912670072,5.39493796,1248.0,1247.8,3.0]
[1672912670283,2.5,1247.9,1247.8,3.0]
[1672912670595,5.7078,1247.9,1247.8,3.0]
[1672912672161,3.2078,1247.9,1247.8,3.0]
[1672912672587,3.2078,1247.9,1247.7,17.40824382]
[1672912672802,3.2078,1247.9,1247.8,3.0]
[1672912681104,5.39493796,1248.0,1247.8,3.0]
[1672912681312,8.60273796,1248.0,1247.8,3.0]
[1672912681836,5.60273796,1248.0,1247.8,4.19944382]
[1672912682046,8.60273796,1248.0,1247.8,4.19944382]
[1672912682376,2.5,1247.9,1247.8,4.19944382]
[1672912683207,2.5,1247.9,1247.8,3.0]
[1672912683524,2.5,1247.9,1247.8,4.19944382]
[1672912683943,8.60273796,1248.0,1247.8,4.19944382]
[1672912684156,2.5,1247.9,1247.8,4.19944382]
[1672912684366,2.5,1247.9,1247.8,3.0]
[1672912684573,4.89493796,1247.9,1247.8,3.0]
[1672912686259,2.39493796,1247.9,1247.8,3.0]
[1672912688044,6.2078,1248.0,1247.8,3.0]
[1672912688997,3.2078,1248.0,1247.8,3.0]
[1672912689306,3.2078,1248.0,1247.8,11.001]
[1672912691105,3.0,1247.9,1247.8,10.9977323]
[1672912691611,2.39606926,1247.9,1247.8,12.79347845]
[1672912699500,3.0,1248.1,1247.8,10.9977323]
[1672912699710,6.2078,1248.1,1247.8,10.9977323]
[1672912699920,3.0,1248.1,1247.8,10.9977323]
[1672912700131,6.2078,1248.1,1247.8,10.9977323]
[1672912701293,3.2078,1248.1,1247.8,10.9977323]
[1672912701818,2.40001513,1247.9,1247.8,16.40440275]
[1672912702868,6.00001891,1248.0,1247.8,16.40440275]
[1672912703813,3.00001891,1248.0,1247.8,16.40440275]
[1672912704017,6.00001891,1248.0,1247.8,16.40440275]
[1672912704230,3.00001891,1248.0,1247.8,16.40440275]
[1672912704658,6.00001891,1248.0,1247.8,16.40440275]
[1672912704977,3.00001891,1248.0,1247.8,16.40440275]
[1672912705400,6.00001891,1248.0,1247.8,16.40440275]
[1672912705913,3.00001891,1248.0,1247.8,16.40440275]
[1672912706444,6.00001891,1248.0,1247.8,16.40440275]
[1672912706857,2.40003389,1247.9,1247.8,13.40069694]
[1672912707177,5.4000528,1247.9,1247.8,14.82103003]
[1672912709273,5.4000528,1247.9,1247.8,17.82473584]
[1672912709490,5.4000528,1247.9,1247.8,14.82103003]
[1672912710437,3.00001891,1247.9,1247.8,14.82103003]
[1672912713904,5.40046257,1247.9,1247.8,17.82473584]
[1672912717479,2.40044366,1247.9,1247.8,15.4217712]
[1672912719466,5.40046257,1247.9,1247.8,17.82515067]
[1672912719681,5.40046257,1247.9,1247.8,15.4217712]
[1672912719884,2.40044366,1247.9,1247.8,15.4217712]
[1672912720306,2.40044366,1247.9,1247.8,17.82507233]
[1672912720517,2.40044366,1247.9,1247.8,15.4217712]
[1672912720944,2.40044366,1247.9,1247.8,17.82507458]
[1672912721478,2.40044366,1247.9,1247.8,15.4217712]
[1672912721789,2.40044366,1247.9,1247.8,17.8250757]
[1672912721994,2.40044366,1247.9,1247.8,15.4217712]
[1672912724310,2.40044366,1247.9,1247.8,17.82501631]
[1672912725466,2.40044366,1247.9,1247.8,15.4217712]
[1672912729671,2.40044366,1247.9,1247.8,18.6295712]
[1672912729882,5.40046257,1247.9,1247.8,17.82518796]
[1672912730092,2.40044366,1247.9,1247.8,17.82518796]
[1672912731141,2.40044366,1247.9,1247.8,17.82516401]
[1672912731351,2.40044366,1247.9,1247.8,17.82516498]
[1672912731562,2.40044366,1247.9,1247.8,15.4217712]
[1672912741439,2.40044366,1247.9,1247.8,12.41806539]
[1672912741749,2.40044366,1247.9,1247.8,15.42246853]
[1672912741961,3.00001891,1248.0,1247.8,15.42246853]
[1672912741962,2.40044366,1248.0,1247.8,12.41806539]
[1672912742177,2.40044366,1248.0,1247.9,20.63340404]
[1672912746482,2.40044366,1248.0,1247.9,23.03558595]
[1672912746687,2.40044366,1248.0,1247.9,20.63340404]
[1672912747539,5.40046257,1248.1,1247.9,20.63340404]
[1672912747742,5.40046257,1248.1,1248.0,7.20268375]
[1672912749204,3.00001891,1248.1,1248.0,15.20368375]
[1672912749421,5.39856408,1248.1,1248.0,13.40253357]
[1672912749630,2.39854517,1248.1,1248.0,15.20334991]
[1672912749843,5.39856408,1248.1,1248.0,15.20334991]
[1672912750795,2.39854517,1248.1,1248.0,13.40253357]
[1672912751109,5.39856408,1248.2,1248.0,17.82685845]
[1672912751321,5.39856408,1248.2,1248.1,14.80169172]
[1672912751526,2.39854517,1248.2,1248.1,14.80169172]
[1672912752572,5.39391933,1248.2,1248.1,16.00172145]
[1672912752781,2.99662185,1248.2,1248.1,16.00172145]
[1672912752995,5.39388346,1248.2,1248.1,8.00072145]
[1672912753206,8.60168346,1248.2,1248.1,6.20002973]
[1672912753424,8.60168346,1248.2,1248.1,11.00072145]
[1672912753637,8.60168346,1248.2,1248.1,9.20002973]
[1672912753849,8.60168346,1248.2,1248.1,6.20002973]
[1672912755955,5.39388346,1248.2,1248.1,6.20002973]
[1672912761418,5.39388346,1248.2,1248.1,8.00072145]
[1672912761624,7.79030277,1248.2,1248.1,6.20002973]
[1672912761837,7.79029496,1248.2,1248.1,8.00072145]
[1672912762469,5.39388346,1248.2,1248.1,6.20002973]
[1672912762679,5.39388346,1248.2,1248.1,1.20002973]
[1672912763303,7.79021883,1248.2,1248.1,1.20002973]
[1672912763836,7.79021883,1248.2,1248.1,6.20002973]
[1672912764041,7.79021883,1248.2,1248.1,8.00072145]
[1672912764247,5.39388346,1248.2,1248.1,6.20002973]
[1672912764463,7.79025194,1248.2,1248.1,6.20002973]
[1672912764674,7.79025372,1248.2,1248.1,8.00072145]
[1672912764995,7.79025372,1248.2,1248.1,6.20002973]
[1672912765207,7.79027746,1248.2,1248.1,6.20002973]
[1672912765521,7.79027746,1248.2,1248.1,8.00072145]
[1672912766260,10.99807746,1248.2,1248.1,8.00072145]
[1672912767203,10.99807746,1248.2,1248.1,11.00072145]
[1672912767516,8.00145561,1248.2,1248.1,11.00072145]
[1672912767835,4.79365561,1248.2,1248.1,11.00072145]
[1672912768673,4.79365561,1248.2,1248.1,9.80069172]
[1672912770352,4.79365561,1248.2,1248.1,17.80169172]
[1672912774984,4.79365561,1248.2,1248.1,18.40253357]
[1672912775395,2.39726161,1248.2,1248.1,18.40253357]
[1672912776037,2.39726161,1248.2,1248.1,19.82250672]
[1672912776254,4.79365561,1248.2,1248.1,19.82250672]
[1672912776569,2.39726161,1248.2,1248.1,19.82250672]
[1672912776991,4.79365561,1248.2,1248.1,19.82250672]
[1672912777516,2.39726161,1248.2,1248.1,19.82250554]
[1672912777719,2.39726161,1248.2,1248.1,18.40253357]
[1672912777929,4.79365561,1248.2,1248.1,19.8225013]
[1672912778245,2.39726161,1248.2,1248.1,30.33954394]
[1672912779399,4.79365561,1248.2,1248.1,30.33954394]
[1672912779605,2.39726161,1248.2,1248.1,30.33954394]
[1672912779928,2.39726161,1248.2,1248.1,30.94228132]
[1672912780129,2.23702445,1248.2,1248.1,30.94228132]
[1672912780344,2.20497702,1248.2,1248.1,29.83121619]
[1672912780555,2.20497702,1248.2,1248.1,27.93801037]
[1672912781286,2.396394,1248.4,1248.1,27.93801037]
[1672912781493,2.99662185,1248.5,1248.3,19.2089062]
[1672912781494,2.396394,1248.5,1248.3,19.2089062]
[1672912781709,5.39301585,1248.6,1248.4,14.21914974]
[1672912781917,2.396394,1248.6,1248.5,1.19878385]
[1672912782133,2.396394,1248.6,1248.5,13.99796586]
[1672912782335,2.396394,1248.6,1248.5,14.56136592]
[1672912783608,2.396394,1248.6,1248.5,12.76318391]
[1672912784237,2.396394,1248.6,1248.5,12.19978385]
[1672912784447,2.396394,1248.6,1248.5,3.0]
[1672912784657,2.396394,1248.6,1248.5,4.19878385]
[1672912784862,2.396394,1248.6,1248.5,3.0]
[1672912785276,2.396394,1248.6,1248.4,13.99796586]
[1672912786542,5.604194,1248.7,1248.5,1.19878385]
[1672912786754,5.604194,1248.7,1248.5,14.19978385]
[1672912787076,5.604194,1248.7,1248.6,3.0]
[1672912787290,2.396394,1248.7,1248.6,3.0]
[1672912787496,2.396394,1248.7,1248.5,19.20576586]
[1672912787708,5.396394,1248.7,1248.6,3.0]
[1672912787912,8.604194,1248.7,1248.6,3.0]
[1672912788227,8.604194,1248.7,1248.5,14.19978385]
[1672912788433,8.604194,1248.7,1248.5,13.001]
[1672912788646,8.604194,1248.7,1248.5,14.19978385]
[1672912789287,8.604194,1248.7,1248.5,13.001]
[1672912789495,8.604194,1248.7,1248.5,14.19978385]
[1672912789700,8.604194,1248.7,1248.5,13.001]
[1672912789907,8.604194,1248.7,1248.5,14.19978385]
[1672912790126,8.604194,1248.7,1248.6,3.0]
[1672912790857,5.604194,1248.7,1248.6,3.0]
[1672912791068,5.396394,1248.8,1248.6,3.0]
[1672912791275,8.39301585,1248.8,1248.6,3.0]
[1672912791488,5.396394,1248.8,1248.6,3.0]
[1672912791911,5.396394,1248.7,1248.6,3.0]
[1672912792226,3.0,1248.7,1248.6,3.0]
[1672912793593,5.396394,1248.8,1248.6,3.0]
[1672912796323,3.0,1248.8,1248.6,11.001]
[1672912801263,6.803194,1248.9,1248.6,11.001]
[1672912801477,8.303194,1248.9,1248.6,11.001]
[1672912802628,11.29981585,1248.9,1248.6,11.001]
[1672912802834,8.303194,1248.9,1248.6,11.001]
[1672912803046,2.396394,1248.8,1248.5,17.40758385]
[1672912803367,3.0,1248.7,1248.5,17.40758385]
[1672912803569,3.0,1248.7,1248.5,14.19978385]
[1672912805048,3.0,1248.7,1248.5,17.40758385]
[1672912805254,3.0,1248.7,1248.5,19.20576586]
[1672912805465,3.0,1248.7,1248.5,17.40758385]
[1672912806412,6.2078,1248.7,1248.5,14.19978385]
[1672912806728,6.2078,1248.7,1248.5,13.001]
[1672912807144,6.2078,1248.7,1248.5,14.19978385]
[1672912807353,6.2078,1248.7,1248.5,13.001]
[1672912807563,8.604194,1248.7,1248.5,5.0]
[1672912807776,8.604194,1248.7,1248.4,9.19978385]
[1672912808300,8.604194,1248.7,1248.4,2.99696586]
[1672912808512,8.604194,1248.7,1248.4,1.19878385]
[1672912809458,8.604194,1248.7,1248.4,2.99696586]
[1672912809879,8.604194,1248.7,1248.4,1.19878385]
[1672912810090,8.604194,1248.7,1248.4,2.99696586]
[1672912810508,8.604194,1248.7,1248.5,5.0]
[1672912810719,8.604194,1248.7,1248.6,3.0]
[1672912811134,8.604194,1248.7,1248.5,8.0]
[1672912811772,8.604194,1248.7,1248.5,9.19878385]
[1672912812721,8.604194,1248.7,1248.6,3.0]
[1672912812931,6.2078,1248.7,1248.6,3.0]
[1672912813142,3.0,1248.7,1248.6,3.0]
[1672912813353,3.0,1248.7,1248.6,4.19878385]
[1672912813766,5.396394,1248.7,1248.6,4.19878385]
[1672912813975,3.0,1248.7,1248.6,4.19878385]
[1672912814189,2.396394,1248.7,1248.6,4.19878385]
[1672912814505,5.99662185,1248.8,1248.6,4.19878385]
[1672912814506,8.39301585,1248.8,1248.6,4.19878385]
[1672912815659,2.396394,1248.7,1248.6,4.19878385]
[1672912815868,2.396394,1248.7,1248.6,1.19878385]
[1672912816501,2.396394,1248.7,1248.6,4.19878385]
[1672912817652,2.396394,1248.7,1248.6,5.99696586]
[1672912818708,2.396394,1248.7,1248.6,4.79818201]
[1672912819546,5.39301585,1248.7,1248.6,4.79818201]
[1672912819753,5.39301585,1248.7,1248.6,5.4000387]
[1672912820178,2.396394,1248.7,1248.6,7.19937411]
[1672912820704,5.39665341,1248.7,1248.6,4.79933541]
[1672912821016,7.79667369,1248.7,1248.6,7.19937411]
[1672912821646,5.39665341,1248.7,1248.6,4.79933541]
[1672912822493,5.39665341,1248.7,1248.6,7.19937411]
[1672912822809,5.39665341,1248.7,1248.6,4.79933541]
[1672912823328,5.39665341,1248.7,1248.6,1.79933541]
[1672912824275,5.39665341,1248.7,1248.6,2.99923719]
[1672912825011,5.39665341,1248.7,1248.6,1.79933541]
[1672912826065,5.39665341,1248.7,1248.6,4.79933541]
[1672912827959,5.39665341,1248.7,1248.6,1.79933541]
[1672912828698,2.40003156,1248.7,1248.6,2.99954012]
[1672912828909,5.40112203,1248.7,1248.6,1.79933541]
[1672912829121,5.40112239,1248.7,1248.6,1.79933541]
[1672912831013,5.40112239,1248.7,1248.6,4.79933541]
[1672912831320,5.40112239,1248.7,1248.6,1.79933541]
[1672912832997,5.40112239,1248.7,1248.6,4.19937411]
[1672912833418,5.40112239,1248.7,1248.6,7.19937411]
[1672912833631,5.40112239,1248.7,1248.6,4.19937411]
[1672912833833,5.40112239,1248.7,1248.6,7.19937411]
[1672912834057,5.40112239,1248.7,1248.6,4.19937411]
[1672912834680,5.40112239,1248.7,1248.6,7.19937411]
[1672912834990,5.40112239,1248.7,1248.6,4.19937411]
[1672912835411,5.40112239,1248.7,1248.6,1.79933541]
[1672912835836,5.40112239,1248.7,1248.6,4.19937411]
[1672912836050,5.40112239,1248.7,1248.6,1.79933541]
[1672912838893,5.40112239,1248.7,1248.6,4.19937411]
[1672912839423,2.40003156,1248.7,1248.6,2.99991519]
[1672912839627,5.4015115,1248.7,1248.6,1.79933541]
[1672912839947,5.4015115,1248.7,1248.6,2.4000387]
[1672912840258,5.4015115,1248.7,1248.6,4.20069856]
[1672912841423,5.4015115,1248.7,1248.6,2.4000387]
[1672912842050,7.80250331,1248.7,1248.6,6.81948267]
[1672912842256,4.80102337,1248.7,1248.6,6.81948267]
[1672912842677,4.80102337,1248.7,1248.6,14.82048267]
[1672912843204,4.80102337,1248.7,1248.6,17.82058887]
[1672912843414,4.80102337,1248.7,1248.6,14.82048267]
[1672912843621,7.80250331,1248.7,1248.6,14.82048267]
[1672912843827,4.80102337,1248.7,1248.6,14.82048267]
[1672912845202,7.80250331,1248.7,1248.6,14.82048267]
[1672912845721,4.80102337,1248.7,1248.6,14.82048267]
[1672912847944,7.80250331,1248.7,1248.6,14.82048288]
[1672912848255,5.4015115,1248.7,1248.6,4.20057624]
[1672912848469,5.4015115,1248.7,1248.6,1.80053754]
[1672912849408,8.6093115,1248.7,1248.6,1.80053754]
[1672912851936,5.60783156,1248.7,1248.6,1.80053754]
[1672912852150,8.61000013,1248.7,1248.6,4.20057624]
[1672912852565,8.61000013,1248.7,1248.6,4.19451249]
[1672912852879,5.40220013,1248.7,1248.6,4.19451249]
[1672912853197,8.61000013,1248.7,1248.6,4.19451249]
[1672912854671,5.40220013,1248.7,1248.6,4.19451249]
[1672912854881,5.40220013,1248.7,1248.6,2.4000387]
[1672912855192,5.40220013,1248.7,1248.6,5.4000387]
[1672912855825,5.40220013,1248.7,1248.6,6.81951014]
[1672912856876,5.40220013,1248.7,1248.6,2.4000387]
[1672912857818,5.40220013,1248.7,1248.6,5.4000387]
[1672912858030,5.40220013,1248.7,1248.6,6.81950676]
[1672912858236,5.40220013,1248.7,1248.6,3.81950676]
[1672912858560,5.40220013,1248.7,1248.6,3.81950334]
[1672912858986,5.40220013,1248.7,1248.6,2.4000387]
[1672912859295,5.40220013,1248.7,1248.5,21.4011449]
[1672912859513,2.40170422,1248.6,1248.5,21.4011449]
[1672912859721,5.40170422,1248.6,1248.5,22.82067674]
[1672912860456,2.40170422,1248.6,1248.5,20.42063804]
[1672912864659,2.40170422,1248.6,1248.5,22.82190614]
[1672912865183,2.40170422,1248.6,1248.5,14.82090614]
[1672912865400,5.40387279,1248.6,1248.5,14.82090614]
[1672912865920,5.40387279,1248.6,1248.5,11.82079994]
[1672912866236,3.00216857,1248.6,1248.5,8.82079994]
[1672912866446,3.00216857,1248.6,1248.5,3.82079994]
[1672912866758,6.00216857,1248.6,1248.5,2.4012681]
[1672912869278,6.00216857,1248.6,1248.4,13.4023743]
[1672912869495,6.00216857,1248.6,1248.5,2.4012681]
[1672912869810,6.00216857,1248.6,1248.5,5.4012681]
[1672912870015,6.00216857,1248.6,1248.5,2.4012681]
[1672912870433,1.0,1248.5,1248.4,2.4012681]
[1672912870638,3.40101606,1248.5,1248.4,6.82091508]
[1672912874338,3.40101606,1248.5,1248.4,3.82091508]
[1672912874643,3.40101606,1248.5,1248.4,6.82091508]
[1672912875581,3.40101606,1248.5,1248.4,3.82091508]
[1672912876116,3.40101606,1248.5,1248.4,6.82091508]
[1672912876743,2.40101606,1248.5,1248.4,6.82091508]
[1672912877582,2.40101606,1248.5,1248.4,9.82102128]
[1672912878004,2.40101606,1248.5,1248.4,6.82102128]
[1672912878320,2.40101606,1248.5,1248.4,3.82091508]
[1672912879478,2.40101606,1248.5,1248.4,6.82091508]
[1672912879678,2.40101606,1248.5,1248.4,3.82091508]
[1672912880211,2.40101606,1248.5,1248.4,2.4012681]
[1672912880409,2.40101606,1248.5,1248.4,3.8209108]
[1672912880626,2.40101606,1248.5,1248.4,6.8209108]
[1672912881050,2.40101606,1248.5,1248.4,3.8209108]
[1672912881260,2.40101606,1248.5,1248.4,5.4012681]
[1672912881469,2.40101606,1248.5,1248.4,2.4012681]
[1672912881682,2.40101606,1248.5,1248.4,6.82089126]
[1672912883052,2.40101606,1248.5,1248.4,3.82089126]
[1672912883469,2.40101606,1248.5,1248.4,2.4012681]
[1672912883786,2.40101606,1248.5,1248.4,3.82090094]
[1672912884208,2.40101606,1248.5,1248.4,6.82090094]
[1672912884418,2.40101606,1248.5,1248.4,3.82090094]
[1672912884832,2.40101606,1248.5,1248.4,6.82090094]
[1672912885471,2.40101606,1248.5,1248.4,3.82090094]
[1672912885786,2.40101606,1248.5,1248.4,6.82090094]
[1672912885990,2.40101606,1248.5,1248.4,3.82090094]
[1672912886196,2.40101606,1248.5,1248.4,6.82090094]
[1672912887362,2.40101606,1248.5,1248.4,9.82100714]